fUSD/lending_fUSD_20250623
["ID","MTS","AMOUNT","RATE_DAILY","PERIOD"]
[367115135,1750662724861,-207.0,0.0002967,30]
[367115136,1750662724871,-227.38,0.00029719,2]
[367115137,1750662724881,-201.3339867,0.00029753,30]
[367115138,1750662724892,-847.35058327,0.00029763,15]
[367115139,1750662724901,-1224.0,0.00029808,2]
[367115140,1750662724911,-235317.34417172,0.00029843,2]
[367115141,1750662724921,-5455.753665,0.00029863,3]
[367115142,1750662724930,-558.63687505,0.00029863,3]
[367115143,1750662724939,-906.91,0.00029863,3]
[367115144,1750662724949,-490.0,0.00029863,3]
[367115145,1750662724958,-490.07895299,0.00029863,3]
[367115146,1750662724968,-490.0,0.00029863,3]
[367115147,1750662724978,-733.39,0.00029863,3]
[367115148,1750662724987,-490.0,0.00029863,3]
[367115149,1750662724997,-490.0,0.00029863,3]
[367115150,1750662725006,-490.0,0.00029863,3]
[367115151,1750662725015,-490.0,0.00029863,3]
[367115152,1750662725149,-252.921479,0.00029863,3]
[367115153,1750662725159,-958.78,0.00029863,3]
[367115154,1750662725169,-972.11,0.00029863,3]
[367115155,1750662725179,-490.0,0.00029863,3]
[367115156,1750662725188,-2591.829598,0.00029863,3]
[367115157,1750662725198,-615.11,0.00029863,3]
[367115158,1750662725207,-804.23,0.00029863,3]
[367115159,1750662725217,-490.0,0.00029863,3]
[367115160,1750662725227,-490.0,0.00029863,3]
[367115161,1750662725236,-490.0,0.00029863,3]
[367115162,1750662725246,-490.0,0.00029863,3]
[367115163,1750662725255,-490.0,0.00029863,3]
[367115164,1750662725266,-517.321938,0.00029863,3]
[367115165,1750662725275,-1075.31,0.00029863,3]
[367115166,1750662725285,-811.41,0.00029863,3]
[367115167,1750662725295,-663.45,0.00029863,3]
[367115168,1750662725305,-490.0,0.00029863,3]
[367115169,1750662725315,-695.49,0.00029863,3]
[367115170,1750662725324,-490.0,0.00029863,3]
[367115171,1750662725334,-977.66,0.00029863,3]
[367115172,1750662725344,-833.21,0.00029863,3]
[367115173,1750662725354,-591.25,0.00029863,3]
[367115174,1750662725363,-490.0,0.00029863,3]
[367115175,1750662725375,-690.16,0.00029863,3]
[367115176,1750662725384,-1109.36,0.00029863,3]
[367115177,1750662725394,-490.0,0.00029863,3]
[367115178,1750662725404,-490.0,0.00029863,3]
[367115179,1750662725414,-526.92,0.00029863,3]
[367115180,1750662725423,-519.11,0.00029863,3]
[367115181,1750662725433,-490.0,0.00029863,3]
[367115182,1750662725443,-970.12,0.00029863,3]
[367115183,1750662725453,-1478.36,0.00029863,3]
[367115184,1750662725462,-490.0,0.00029863,3]
[367115185,1750662725472,-490.0,0.00029863,3]
[367115186,1750662725481,-1376.6,0.00029863,3]
[367115187,1750662725491,-490.0,0.00029863,3]
[367115188,1750662725502,-889.62,0.00029863,3]
[367115189,1750662725512,-490.0,0.00029863,3]
[367115190,1750662725527,-1155.19,0.00029863,3]
[367115191,1750662725536,-490.0,0.00029863,3]
[367115192,1750662725546,-495.01,0.00029863,3]
[367115193,1750662725556,-490.0,0.00029863,3]
[367115194,1750662725566,-668.52,0.00029863,3]
[367115195,1750662725575,-490.0,0.00029863,3]
[367115196,1750662725585,-698.01,0.00029863,3]
[367115197,1750662725596,-586.16,0.00029863,3]
[367115198,1750662725606,-490.0,0.00029863,3]
[367115199,1750662725616,-490.0,0.00029863,3]
[367115200,1750662725625,-490.0,0.00029863,3]
[367115201,1750662725634,-644.39,0.00029863,3]
[367115202,1750662725644,-617.7,0.00029863,3]
[367115203,1750662725654,-826.8,0.00029863,3]
[367115204,1750662725663,-490.0,0.00029863,3]
[367115205,1750662725672,-490.0,0.00029863,3]
[367115206,1750662725682,-490.0,0.00029863,3]
[367115207,1750662725691,-626.46,0.00029863,3]
[367115208,1750662725701,-506.50270823,0.00029863,3]
[367115209,1750662725710,-841.55,0.00029863,3]
[367115210,1750662725720,-625.27,0.00029863,3]
[367115211,1750662725732,-1584.78,0.00029863,3]
[367115212,1750662725743,-490.0,0.00029863,3]
[367115213,1750662725756,-490.0,0.00029863,3]
[367115214,1750662725766,-490.0,0.00029863,3]
[367115215,1750662725775,-490.0,0.00029863,3]
[367115216,1750662725784,-1089.25,0.00029863,3]
[367115217,1750662725794,-914.26,0.00029863,3]
[367115218,1750662725803,-777.39,0.00029863,3]
[367115219,1750662725813,-667.3,0.00029863,3]
[367115220,1750662725822,-1172.55,0.00029863,3]
[367115221,1750662725832,-857.69,0.00029863,3]
[367115222,1750662725842,-601.26,0.00029863,3]
[367115223,1750662725851,-1486.14,0.00029863,3]
[367115224,1750662725861,-654.18,0.00029863,3]
[367115225,1750662725870,-563.6,0.00029863,3]
[367115226,1750662725881,-641.56,0.00029863,3]
[367115227,1750662725890,-2328.1,0.00029863,3]
[367115228,1750662725900,-490.0,0.00029863,3]
[367115229,1750662725909,-1714.75,0.00029863,3]
[367115230,1750662725918,-490.0,0.00029863,3]
[367115231,1750662725927,-2984.61,0.00029863,3]
[367115232,1750662725937,-834.55,0.00029863,3]
[367115233,1750662725946,-1666.5,0.00029863,3]
[367115234,1750662725955,-490.0,0.00029863,2]
[367115235,1750662725965,-579.07,0.00029863,3]
[367115236,1750662725974,-774.87,0.00029863,3]
[367115237,1750662725983,-198.016965,0.00029863,3]
[367115238,1750662725993,-490.0,0.00029863,3]
[367115239,1750662726003,-523.64,0.00029863,3]
[367115240,1750662726013,-1685.1,0.00029863,3]
[367115241,1750662726023,-685.83,0.00029863,3]
[367115242,1750662726033,-845.32,0.00029863,3]
[367115243,1750662726043,-490.0,0.00029863,3]
[367115244,1750662726052,-490.0,0.00029863,3]
[367115245,1750662726062,-1003.013708,0.00029863,3]
[367115246,1750662726072,-407.03,0.00029863,3]
[367115247,1750662726081,-490.0,0.00029863,3]
[367115248,1750662726091,-620.28,0.00029863,3]
[367115249,1750662726101,-490.0,0.00029863,3]
[367115250,1750662726111,-692.18,0.00029863,3]
[367115251,1750662726120,-583.42,0.00029863,3]
[367115252,1750662726131,-1382.11,0.00029863,3]
[367115253,1750662726141,-490.0,0.00029863,3]
[367115254,1750662726151,-957.53,0.00029863,3]
[367115255,1750662726160,-1520.85,0.00029863,3]
[367115256,1750662726170,-852.4,0.00029863,3]
[367115257,1750662726179,-1514.64,0.00029863,3]
[367115258,1750662726189,-564.98,0.00029863,3]
[367115259,1750662726199,-1413.76,0.00029863,3]
[367115260,1750662726208,-621.88,0.00029863,3]
[367115261,1750662726218,-643.76,0.00029863,3]
[367115262,1750662726230,-1486.85,0.00029863,3]
[367115263,1750662726239,-605.57,0.00029863,3]
[367115264,1750662726249,-765.6,0.00029863,3]
[367115265,1750662726259,-490.0,0.00029863,3]
[367115266,1750662726270,-635.87,0.00029863,3]
[367115267,1750662726280,-490.0,0.00029863,3]
[367115268,1750662726290,-748.29,0.00029863,3]
[367115269,1750662726300,-559.87,0.00029863,3]
[367115270,1750662726310,-702.32,0.00029863,3]
[367115271,1750662726320,-521.1,0.00029863,3]
[367115272,1750662726330,-1437.96,0.00029863,3]
[367115273,1750662726339,-933.29,0.00029863,3]
[367115274,1750662726349,-623.74,0.00029863,3]
[367115275,1750662726358,-1229.23,0.00029863,3]
[367115276,1750662726368,-1240.62,0.00029863,3]
[367115277,1750662726379,-490.0,0.00029863,3]
[367115278,1750662726388,-1044.91,0.00029863,3]
[367115279,1750662726398,-636.16,0.00029863,3]
[367115280,1750662726408,-490.92,0.00029863,3]
[367115281,1750662726418,-583.46,0.00029863,3]
[367115282,1750662726427,-1648.05,0.00029863,3]
[367115283,1750662726437,-745.48,0.00029863,3]
[367115284,1750662726447,-1819.02,0.00029863,3]
[367115285,1750662726457,-1025.74,0.00029863,3]
[367115286,1750662726466,-490.0,0.00029863,3]
[367115287,1750662726477,-507.64,0.00029863,3]
[367115288,1750662726487,-1801.52,0.00029863,3]
[367115289,1750662726497,-1776.13,0.00029863,3]
[367115290,1750662726507,-803.35,0.00029863,3]
[367115291,1750662726517,-1305.95,0.00029863,3]
[367115292,1750662726530,-490.0,0.00029863,3]
[367115293,1750662726540,-825.12,0.00029863,3]
[367115294,1750662726549,-553.17,0.00029863,3]
[367115295,1750662726559,-1449.74,0.00029863,3]
[367115296,1750662726569,-1184.6,0.00029863,3]
[367115297,1750662726579,-2077.31,0.00029863,3]
[367115298,1750662726589,-903.1,0.00029863,3]
[367115299,1750662726598,-1228.76,0.00029863,3]
[367115300,1750662726607,-840.82,0.00029863,3]
[367115301,1750662726617,-972.48,0.00029863,3]
[367115302,1750662726626,-1017.63,0.00029863,3]
[367115303,1750662726636,-490.0,0.00029863,3]
[367115304,1750662726645,-490.0,0.00029863,3]
[367115305,1750662726655,-698.82,0.00029863,3]
[367115306,1750662726665,-1683.09,0.00029863,3]
[367115307,1750662726675,-614.18,0.00029863,3]
[367115308,1750662726686,-1068.5,0.00029863,3]
[367115309,1750662726696,-492.43,0.00029863,3]
[367115310,1750662726706,-490.0,0.00029863,3]
[367115311,1750662726715,-899.45,0.00029863,3]
[367115312,1750662726725,-490.0,0.00029863,3]
[367115313,1750662726734,-1018.31,0.00029863,3]
[367115314,1750662726743,-1636.32,0.00029863,3]
[367115315,1750662726753,-1034.85,0.00029863,3]
[367115316,1750662726762,-490.0,0.00029863,3]
[367115317,1750662726772,-636.43,0.00029863,3]
[367115318,1750662726782,-514.73,0.00029863,3]
[367115319,1750662726792,-1597.54,0.00029863,3]
[367115320,1750662726803,-490.0,0.00029863,3]
[367115321,1750662726812,-878.08,0.00029863,3]
[367115322,1750662726821,-490.0,0.00029863,3]
[367115323,1750662726832,-933.44,0.00029863,3]
[367115324,1750662726841,-490.0,0.00029863,3]
[367115325,1750662726852,-980.14,0.00029863,3]
[367115326,1750662726862,-490.0,0.00029863,3]
[367115327,1750662726872,-1351.29,0.00029863,3]
[367115328,1750662726883,-490.0,0.00029863,3]
[367115329,1750662726892,-1021.72,0.00029863,3]
[367115330,1750662726903,-490.0,0.00029863,3]
[367115331,1750662726912,-490.0,0.00029863,3]
[367115332,1750662726922,-2515.92,0.00029863,3]
[367115333,1750662726933,-563.49,0.00029863,3]
[367115334,1750662726945,-718.42,0.00029863,3]
[367115335,1750662726956,-973.74,0.00029863,3]
[367115336,1750662726968,-490.0,0.00029863,3]
[367115337,1750662726979,-763.59,0.00029863,3]
[367115338,1750662726988,-490.0,0.00029863,3]
[367115339,1750662726998,-1171.08,0.00029863,3]
[367115340,1750662727008,-490.0,0.00029863,3]
[367115341,1750662727018,-806.32,0.00029863,3]
[367115342,1750662727027,-1313.3,0.00029863,3]
[367115343,1750662727036,-490.0,0.00029863,3]
[367115344,1750662727046,-490.0,0.00029863,3]
[367115345,1750662727056,-1866.63,0.00029863,3]
[367115346,1750662727066,-783.39,0.00029863,3]
[367115347,1750662727076,-1408.5,0.00029863,3]
[367115348,1750662727087,-760.51,0.00029863,3]
[367115349,1750662727096,-640.07,0.00029863,3]
[367115350,1750662727106,-1615.12,0.00029863,3]
[367115351,1750662727115,-1113.91,0.00029863,3]
[367115352,1750662727125,-1204.57,0.00029863,3]
[367115353,1750662727135,-490.0,0.00029863,3]
[367115354,1750662727145,-852.31,0.00029863,3]
[367115355,1750662727155,-1617.57,0.00029863,3]
[367115356,1750662727164,-1344.16,0.00029863,3]
[367115357,1750662727174,-1189.28,0.00029863,3]
[367115358,1750662727184,-490.0,0.00029863,3]
[367115359,1750662727194,-924.24,0.00029863,3]
[367115360,1750662727204,-1017.87,0.00029863,3]
[367115361,1750662727213,-1327.65,0.00029863,3]
[367115362,1750662727223,-490.0,0.00029863,3]
[367115363,1750662727234,-816.97,0.00029863,3]
[367115364,1750662727344,-1505.21,0.00029863,3]
[367115365,1750662727356,-490.0,0.00029863,3]
[367115366,1750662727366,-490.0,0.00029863,3]
[367115367,1750662727376,-490.0,0.00029863,3]
[367115368,1750662727386,-995.43,0.00029863,3]
[367115369,1750662727396,-490.0,0.00029863,3]
[367115370,1750662727405,-3010.94,0.00029863,2]
[367115371,1750662727415,-1097.45,0.00029863,3]
[367115372,1750662727425,-753.53,0.00029863,3]
[367115373,1750662727434,-1037.06,0.00029863,3]
[367115374,1750662727444,-1995.53,0.00029863,3]
[367115375,1750662727455,-490.0,0.00029863,3]
[367115376,1750662727465,-660.48,0.00029863,3]
[367115377,1750662727475,-752.2,0.00029863,3]
[367115378,1750662727486,-1341.44,0.00029863,3]
[367115379,1750662727495,-490.0,0.00029863,3]
[367115380,1750662727505,-850.05,0.00029863,3]
[367115381,1750662727515,-490.0,0.00029863,3]
[367115382,1750662727529,-581.79,0.00029863,3]
[367115383,1750662727539,-507.29,0.00029863,3]
[367115384,1750662727549,-2153.23,0.00029863,3]
[367115385,1750662727559,-557.61,0.00029863,3]
[367115386,1750662727571,-572.59,0.00029863,3]
[367115387,1750662727581,-490.0,0.00029863,3]
[367115388,1750662727591,-490.0,0.00029863,3]
[367115389,1750662727602,-2413.05,0.00029863,3]
[367115390,1750662727612,-490.0,0.00029863,3]
[367115391,1750662727623,-618.55109179,0.00029863,3]
[367115392,1750662727633,-566.43,0.00029863,3]
[367115393,1750662727643,-1348.78,0.00029863,3]
[367115394,1750662727654,-2316.4,0.00029863,3]
[367115395,1750662727663,-1609.27,0.00029863,3]
[367115396,1750662727674,-490.0,0.00029863,3]
[367115397,1750662727684,-569.99,0.00029863,3]
[367115398,1750662727694,-490.0,0.00029863,3]
[367115399,1750662727704,-490.0,0.00029863,3]
[367115400,1750662727714,-861.6,0.00029863,3]
[367115401,1750662727724,-490.0,0.00029863,3]
[367115402,1750662727733,-2663.87,0.00029863,3]
[367115403,1750662727743,-731.27,0.00029863,3]
[367115404,1750662727753,-560.0,0.00029863,3]
[367115405,1750662727763,-1117.5,0.00029863,3]
[367115406,1750662727773,-490.0,0.00029863,3]
[367115407,1750662727783,-921.04,0.00029863,3]
[367115408,1750662727793,-783.55,0.00029863,3]
[367115409,1750662727803,-600.11,0.00029863,3]
[367115410,1750662727813,-1052.0,0.00029863,3]
[367115411,1750662727823,-490.0,0.00029863,3]
[367115412,1750662727833,-785.27,0.00029863,3]
[367115413,1750662727843,-1688.41,0.00029863,3]
[367115414,1750662727852,-595.61,0.00029863,3]
[367115415,1750662727862,-1726.17,0.00029863,3]
[367115416,1750662727871,-950.58,0.00029863,3]
[367115417,1750662727882,-490.0,0.00029863,3]
[367115418,1750662727893,-1953.41,0.00029863,3]
[367115419,1750662727902,-323.56994449,0.00029863,3]
[367115420,1750662727912,-523.44,0.00029863,3]
[367115421,1750662727922,-603.07,0.00029863,3]
[367115422,1750662727932,-1456.32,0.00029863,3]
[367115423,1750662727941,-1698.32,0.00029863,3]
[367115424,1750662727951,-501.63,0.00029863,3]
[367115425,1750662727961,-490.0,0.00029863,3]
[367115426,1750662727970,-490.0,0.00029863,3]
[367115427,1750662727980,-490.0,0.00029863,3]
[367115428,1750662727990,-1007.06,0.00029863,3]
[367115429,1750662728001,-1681.01,0.00029863,3]
[367115430,1750662728010,-1708.4,0.00029863,3]
[367115431,1750662728020,-490.0,0.00029863,3]
[367115432,1750662728030,-873.29,0.00029863,3]
[367115433,1750662728039,-1098.59,0.00029863,3]
[367115434,1750662728049,-1944.53,0.00029863,3]
[367115435,1750662728060,-490.0,0.00029863,3]
[367115436,1750662728070,-2433.81,0.00029863,3]
[367115437,1750662728080,-501.38,0.00029863,3]
[367115438,1750662728090,-750.42,0.00029863,3]
[367115439,1750662728101,-577.0,0.00029863,3]
[367115440,1750662728111,-662.45,0.00029863,3]
[367115441,1750662728122,-490.0,0.00029863,3]
[367115442,1750662728134,-1247.14,0.00029863,3]
[367115443,1750662728143,-1551.77,0.00029863,3]
[367115444,1750662728153,-1650.44,0.00029863,3]
[367115445,1750662728163,-703.59,0.00029863,3]
[367115446,1750662728174,-529.91,0.00029863,3]
[367115447,1750662728183,-490.0,0.00029863,3]
[367115448,1750662728194,-490.0,0.00029863,3]
[367115449,1750662728204,-490.0,0.00029863,3]
[367115450,1750662728214,-788.62,0.00029863,3]
[367115451,1750662728226,-912.47,0.00029863,3]
[367115452,1750662728236,-1251.29,0.00029863,3]
[367115453,1750662728246,-490.0,0.00029863,3]
[367115454,1750662728256,-655.66,0.00029863,3]
[367115455,1750662728265,-675.57,0.00029863,3]
[367115456,1750662728276,-300.0,0.00029863,3]
[367115457,1750662728286,-490.0,0.00029863,3]
[367115458,1750662728295,-1664.2,0.00029863,3]
[367115459,1750662728305,-1679.9,0.00029863,3]
[367115460,1750662728315,-490.0,0.00029863,3]
[367115461,1750662728325,-1433.27,0.00029863,3]
[367115462,1750662728335,-1066.4,0.00029863,3]
[367115463,1750662728344,-572.95,0.00029863,3]
[367115464,1750662728354,-490.0,0.00029863,3]
[367115465,1750662728364,-1605.51,0.00029863,3]
[367115466,1750662728374,-1690.95,0.00029863,3]
[367115467,1750662728384,-490.0,0.00029863,3]
[367115468,1750662728394,-490.0,0.00029863,3]
[367115469,1750662728404,-1674.28,0.00029863,3]
[367115470,1750662728414,-490.0,0.00029863,3]
[367115471,1750662728423,-638.77,0.00029863,3]
[367115472,1750662728434,-1574.11,0.00029863,3]
[367115473,1750662728444,-378.81,0.00029863,3]
[367115474,1750662728454,-684.38,0.00029863,3]
[367115475,1750662728463,-1278.36,0.00029863,3]
[367115476,1750662728472,-905.6,0.00029863,3]
[367115477,1750662728482,-1682.39,0.00029863,3]
[367115478,1750662728492,-1126.22,0.00029863,3]
[367115479,1750662728501,-1410.38,0.00029863,3]
[367115480,1750662728511,-1883.69,0.00029863,3]
[367115481,1750662728524,-7415.21,0.00029863,3]
[367115482,1750662728533,-2332.56,0.00029863,3]
[367115483,1750662728544,-207.20975485,0.00029863,3]
[367115484,1750662728554,-490.0,0.00029863,3]
[367115485,1750662728564,-1248.93,0.00029863,3]
[367115486,1750662728573,-1449.04,0.00029863,3]
[367115487,1750662728583,-849.69,0.00029863,3]
[367115488,1750662728593,-883.32,0.00029863,3]
[367115489,1750662728603,-587.88,0.00029863,3]
[367115490,1750662728614,-901.3,0.00029863,3]
[367115491,1750662728624,-1164.04,0.00029863,3]
[367115492,1750662728634,-490.0,0.00029863,3]
[367115493,1750662728644,-1753.14,0.00029863,3]
[367115494,1750662728655,-10399.38,0.00029863,3]
[367115495,1750662728664,-4073.96,0.00029863,3]
[367115496,1750662728674,-580.67,0.00029863,3]
[367115497,1750662728684,-1448.46,0.00029863,3]
[367115498,1750662728694,-836.73,0.00029863,3]
[367115499,1750662728704,-918.93,0.00029863,3]
[367115500,1750662728714,-526.35,0.00029863,3]
[367115501,1750662728725,-1355.08,0.00029863,3]
[367115502,1750662728737,-6824.52,0.00029863,3]
[367115503,1750662728747,-1900.51,0.00029863,3]
[367115504,1750662728756,-1016.76,0.00029863,3]
[367115505,1750662728766,-3401.6,0.00029863,3]
[367115506,1750662728777,-3966.47,0.00029863,3]
[367115507,1750662728787,-1741.72,0.00029863,3]
[367115508,1750662728797,-490.0,0.00029863,3]
[367115509,1750662728807,-490.0,0.00029863,3]
[367115510,1750662728817,-909.73,0.00029863,3]
[367115511,1750662728827,-490.0,0.00029863,3]
[367115512,1750662728837,-608.52,0.00029863,3]
[367115513,1750662728849,-934.07,0.00029863,3]
[367115514,1750662728860,-4949.36,0.00029863,3]
[367115515,1750662728869,-2915.88,0.00029863,3]
[367115516,1750662728879,-490.0,0.00029863,3]
[367115517,1750662728889,-1585.93,0.00029863,3]
[367115518,1750662728898,-490.0,0.00029863,3]
[367115519,1750662728908,-490.0,0.00029863,3]
[367115520,1750662728918,-18062.45,0.00029863,3]
[367115521,1750662728928,-814.19,0.00029863,3]
[367115522,1750662728938,-3468.99,0.00029863,3]
[367115523,1750662728948,-1570.58,0.00029863,3]
[367115524,1750662728958,-1672.97,0.00029863,3]
[367115525,1750662728968,-798.22,0.00029863,3]
[367115526,1750662728978,-789.6,0.00029863,3]
[367115527,1750662728988,-1533.06,0.00029863,3]
[367115528,1750662728998,-1681.4,0.00029863,3]
[367115529,1750662729008,-490.0,0.00029863,3]
[367115530,1750662729018,-528.64,0.00029863,3]
[367115531,1750662729029,-1108.02,0.00029863,3]
[367115532,1750662729038,-1980.76,0.00029863,3]
[367115533,1750662729048,-2594.4,0.00029863,3]
[367115534,1750662729057,-490.0,0.00029863,3]
[367115535,1750662729067,-1623.55,0.00029863,3]
[367115536,1750662729076,-490.0,0.00029863,3]
[367115537,1750662729086,-891.21,0.00029863,3]
[367115538,1750662729096,-1019.18,0.00029863,3]
[367115539,1750662729106,-1174.99,0.00029863,3]
[367115540,1750662729116,-3127.29,0.00029863,3]
[367115541,1750662729127,-1569.21,0.00029863,3]
[367115542,1750662729136,-490.0,0.00029863,3]
[367115543,1750662729146,-1940.59,0.00029863,3]
[367115544,1750662729156,-2329.34,0.00029863,3]
[367115545,1750662729167,-664.92,0.00029863,3]
[367115546,1750662729177,-1830.85,0.00029863,3]
[367115547,1750662729187,-1700.21,0.00029863,3]
[367115548,1750662729198,-2769.81,0.00029863,3]
[367115549,1750662729207,-490.0,0.00029863,3]
[367115550,1750662729217,-6713.02,0.00029863,3]
[367115551,1750662729228,-777.56,0.00029863,3]
[367115552,1750662729238,-490.0,0.00029863,3]
[367115553,1750662729248,-2394.73,0.00029863,3]
[367115554,1750662729258,-826.09,0.00029863,3]
[367115555,1750662729270,-490.0,0.00029863,3]
[367115556,1750662729280,-1294.78,0.00029863,3]
[367115557,1750662729290,-1749.09,0.00029863,3]
[367115558,1750662729300,-760.04,0.00029863,3]
[367115559,1750662729310,-490.0,0.00029863,3]
[367115560,1750662729321,-555.71,0.00029863,3]
[367115561,1750662729330,-1626.24,0.00029863,3]
[367115562,1750662729339,-713.4,0.00029863,3]
[367115563,1750662729350,-4056.64,0.00029863,3]
[367115564,1750662729360,-490.0,0.00029863,3]
[367115565,1750662729370,-1498.64,0.00029863,3]
[367115566,1750662729380,-1457.21,0.00029863,3]
[367115567,1750662729390,-490.0,0.00029863,3]
[367115568,1750662729400,-737.54,0.00029863,3]
[367115569,1750662729410,-1307.83,0.00029863,3]
[367115570,1750662729420,-728.06,0.00029863,3]
[367115571,1750662729429,-490.0,0.00029863,3]
[367115572,1750662729439,-1832.35,0.00029863,3]
[367115573,1750662729449,-1380.67,0.00029863,3]
[367115574,1750662729459,-2228.14,0.00029863,3]
[367115575,1750662729469,-2372.02,0.00029863,3]
[367115576,1750662729479,-490.0,0.00029863,3]
[367115577,1750662729489,-3318.96,0.00029863,3]
[367115578,1750662729499,-709.01,0.00029863,3]
[367115579,1750662729509,-862.45,0.00029863,3]
[367115580,1750662729520,-788.8,0.00029863,3]
[367115581,1750662729533,-450.76113629,0.00029863,3]
[367115582,1750662729544,-1916.86,0.00029863,3]
[367115583,1750662729554,-1200.13,0.00029863,3]
[367115584,1750662729565,-678.77,0.00029863,3]
[367115585,1750662729575,-4654.08,0.00029863,3]
[367115586,1750662729584,-1366.52,0.00029863,3]
[367115587,1750662729595,-515.04,0.00029863,3]
[367115588,1750662729605,-788.62,0.00029863,3]
[367115589,1750662729614,-553.78,0.00029863,3]
[367115590,1750662729624,-1578.33,0.00029863,3]
[367115591,1750662729635,-1107.26,0.00029863,3]
[367115592,1750662729645,-498.97,0.00029863,3]
[367115593,1750662729655,-7394.17,0.00029863,3]
[367115594,1750662729665,-1624.99,0.00029863,3]
[367115595,1750662729674,-490.0,0.00029863,3]
[367115596,1750662729685,-1036.64,0.00029863,3]
[367115597,1750662729694,-500.0,0.00029863,3]
[367115598,1750662729705,-490.0,0.00029863,3]
[367115599,1750662729715,-2834.49,0.00029863,3]
[367115600,1750662729726,-12536.04,0.00029863,3]
[367115601,1750662729737,-3543.99,0.00029863,3]
[367115602,1750662729747,-490.0,0.00029863,3]
[367115603,1750662729757,-1768.62,0.00029863,3]
[367115604,1750662729767,-497.45,0.00029863,3]
[367115605,1750662729776,-512.04769063,0.00029863,3]
[367115606,1750662729787,-490.0,0.00029863,3]
[367115607,1750662729797,-1947.91,0.00029863,3]
[367115608,1750662729807,-510.26,0.00029863,3]
[367115609,1750662729816,-1619.96,0.00029863,3]
[367115610,1750662729827,-510.41,0.00029863,3]
[367115611,1750662729837,-5190.35,0.00029863,3]
[367115612,1750662729846,-9852.89,0.00029863,3]
[367115613,1750662729856,-490.0,0.00029863,3]
[367115614,1750662729867,-1552.44,0.00029863,3]
[367115615,1750662729878,-814.87,0.00029863,3]
[367115616,1750662729887,-2783.14,0.00029863,3]
[367115617,1750662729898,-1717.08,0.00029863,3]
[367115618,1750662729908,-490.0,0.00029863,3]
[367115619,1750662729919,-2330.84,0.00029863,3]
[367115620,1750662729929,-1630.26,0.00029863,3]
[367115621,1750662729940,-752.02,0.00029863,3]
[367115622,1750662729950,-490.0,0.00029863,3]
[367115623,1750662729961,-1618.67,0.00029863,3]
[367115624,1750662729971,-490.0,0.00029863,3]
[367115625,1750662729981,-1776.65,0.00029863,3]
[367115626,1750662729992,-915.84,0.00029863,3]
[367115627,1750662730005,-1151.97,0.00029863,3]
[367115628,1750662730015,-670.37,0.00029863,3]
[367115629,1750662730025,-3986.65,0.00029863,3]
[367115630,1750662730035,-1960.82,0.00029863,3]
[367115631,1750662730044,-1591.01,0.00029863,3]
[367115632,1750662730053,-6065.53,0.00029863,3]
[367115633,1750662730063,-1605.38,0.00029863,3]
[367115634,1750662730073,-1642.63,0.00029863,3]